fUST/lending_fUST_20250302
["ID","MTS","AMOUNT","RATE_DAILY","PERIOD"]
[355110123,1740900637212,-500.0,0.00022443,2]
[355110124,1740900637221,-100643.66129364,0.00022444,2]
[355110135,1740900638465,-500.0,0.00022442,2]
[355110136,1740900638475,-500.0,0.00022442,2]
[355110137,1740900638485,-500.0,0.00022443,2]
[355110138,1740900638495,-500.0,0.00022443,2]
[355110139,1740900638505,-121356.33870636,0.00022444,2]
[355110140,1740900638514,-500.0,0.00022473,2]
[355110141,1740900638524,-501.85639985,0.00022473,2]
[355110142,1740900638533,-165.77735844,0.00022473,2]
[355110143,1740900638542,-500.0,0.00022473,2]
[355110144,1740900638552,-500.0,0.00022473,2]
[355110145,1740900638561,-160.01732274,0.00022473,2]
[355110146,1740900638571,-500.0,0.00022473,2]
[355110147,1740900638580,-500.0,0.00022473,2]
[355110148,1740900638590,-500.0,0.00022473,2]
[355110149,1740900638600,-500.0,0.00022473,2]
[355110150,1740900638610,-500.0,0.00022473,2]
[355110151,1740900638619,-500.0,0.00022473,2]
[355110152,1740900638629,-501.00448252,0.00022473,2]
[355110153,1740900638639,-240.21,0.000225,7]
[355110154,1740900638648,-2005.0,0.000225,2]
[355110155,1740900638657,-500.0,0.00022543,2]
[355110156,1740900638668,-500.0,0.00022543,2]
[355110157,1740900638678,-500.0,0.00022543,2]
[355110158,1740900638687,-500.0,0.00022543,2]
[355110159,1740900638696,-500.0,0.00022543,2]
[355110160,1740900638705,-500.0,0.00022543,2]
[355110161,1740900638715,-500.0,0.00022543,2]
[355110162,1740900638724,-500.0,0.00022543,2]
[355110163,1740900638734,-500.0,0.00022543,2]
[355110164,1740900638743,-500.0,0.00022543,2]
[355110165,1740900638753,-1056.45,0.00022543,2]
[355110166,1740900638763,-500.0,0.00022543,2]
[355110167,1740900638772,-500.0,0.00022543,2]
[355110168,1740900638782,-500.0,0.00022543,2]
[355110169,1740900638791,-500.0,0.00022543,2]
[355110170,1740900638801,-500.0,0.00022543,2]
[355110171,1740900638811,-500.0,0.00022543,2]
[355110172,1740900638820,-500.0,0.00022543,2]
[355110173,1740900638830,-500.0,0.00022543,2]
[355110174,1740900638839,-500.0,0.00022543,2]
[355110175,1740900638850,-500.0,0.00022543,2]
[355110176,1740900638863,-500.0,0.00022543,2]
[355110177,1740900638872,-500.0,0.00022543,2]
[355110178,1740900638882,-500.0,0.00022543,2]
[355110179,1740900638891,-500.0,0.00022544,2]
[355110180,1740900638902,-500.0,0.00022544,2]
[355110181,1740900638912,-500.0,0.00022544,2]
[355110182,1740900638922,-500.0,0.00022544,2]
[355110183,1740900638932,-500.0,0.00022544,2]
[355110184,1740900638941,-500.0,0.00022544,2]
[355110185,1740900638950,-500.0,0.00022544,2]
[355110186,1740900638960,-500.0,0.00022544,2]
[355110187,1740900638970,-500.0,0.00022544,2]
[355110188,1740900638979,-500.0,0.00022544,2]
[355110189,1740900638989,-500.0,0.00022544,2]
[355110190,1740900638999,-500.0,0.00022544,2]
[355110191,1740900639008,-500.0,0.00022544,2]
[355110192,1740900639019,-506.83329024,0.00022544,2]
[355110193,1740900639028,-500.0,0.00022544,2]
[355110194,1740900639039,-500.0,0.00022544,2]
[355110195,1740900639049,-500.0,0.00022544,2]
[355110196,1740900639058,-500.0,0.00022544,2]
[355110197,1740900639068,-500.0,0.00022544,2]
[355110198,1740900639078,-500.0,0.00022544,2]
[355110199,1740900639088,-500.0,0.00022544,2]
[355110200,1740900639097,-500.0,0.00022544,2]
[355110201,1740900639107,-500.0,0.00022544,14]
[355110202,1740900639117,-500.0,0.00022544,2]
[355110203,1740900639127,-500.0,0.00022544,2]
[355110204,1740900639136,-500.0,0.00022544,2]
[355110205,1740900639146,-501.223596,0.00022544,2]
[355110206,1740900639158,-505.44397405,0.00022544,2]
[355110207,1740900639167,-500.0,0.00022544,2]
[355110208,1740900639179,-500.0,0.00022544,2]
[355110209,1740900639189,-500.0,0.00022544,2]
[355110210,1740900639199,-500.0,0.00022544,2]
[355110211,1740900639209,-500.0,0.00022544,2]
[355110212,1740900639219,-500.0,0.00022544,2]
[355110213,1740900639229,-500.0,0.00022544,2]
[355110214,1740900639239,-500.0,0.00022544,2]
[355110215,1740900639249,-436.24678386,0.00022544,2]
[355110216,1740900639259,-500.0,0.00022544,2]
[355110217,1740900639269,-500.0,0.00022544,2]
[355110218,1740900639278,-500.0,0.00022544,2]
[355110219,1740900639288,-500.0,0.00022573,2]
[355110220,1740900639298,-500.0,0.00022573,2]
[355110221,1740900639308,-500.0,0.00022573,2]
[355110222,1740900639317,-500.0,0.00022573,2]
[355110223,1740900639327,-4127.06,0.00022716,2]
[355110224,1740900639337,-1019.43,0.00022716,2]
[355110225,1740900639347,-1904.21,0.00022716,2]
[355110226,1740900639357,-644.31,0.00022716,2]
[355110227,1740900639367,-500.0,0.00022716,2]
[355110228,1740900639376,-368.98,0.00022716,2]
[355110229,1740900639386,-500.0,0.00022716,2]
[355110230,1740900639395,-288.96,0.00022716,2]
[355110231,1740900639404,-500.0,0.00022716,2]
[355110232,1740900639418,-994.65,0.00022716,2]
[355110233,1740900639430,-2169.12,0.00022716,2]
[355110234,1740900639439,-500.0,0.00022716,2]
[355110235,1740900639449,-500.0,0.00022716,2]
[355110236,1740900639459,-4459.23,0.00022716,2]
[355110237,1740900639469,-500.0,0.00022716,2]
[355110238,1740900639479,-2595.86,0.00022716,2]
[355110239,1740900639488,-500.0,0.00022716,2]
[355110240,1740900639498,-595.9,0.00022716,2]
[355110241,1740900639507,-500.0,0.00022716,2]
[355110242,1740900639517,-500.0,0.00022716,2]
[355110243,1740900639526,-567.43,0.00022716,2]
[355110244,1740900639535,-500.0,0.00022716,2]
[355110245,1740900639544,-959.75,0.00022716,2]
[355110246,1740900639554,-500.0,0.00022716,2]
[355110247,1740900639564,-2540.92,0.00022716,2]
[355110248,1740900639573,-500.0,0.00022716,2]
[355110249,1740900639583,-740.49,0.00022716,2]
[355110250,1740900639594,-500.0,0.00022716,2]
[355110251,1740900639604,-500.0,0.00022716,2]
[355110252,1740900639614,-500.0,0.00022716,2]
[355110253,1740900639625,-1265.62,0.00022716,2]
[355110254,1740900639634,-312.9,0.00022716,2]
[355110255,1740900639644,-500.0,0.00022716,2]
[355110256,1740900639653,-1000.0,0.00022716,5]
[355110257,1740900639666,-500.0,0.00022716,2]
[355110258,1740900639676,-550.96,0.00022716,2]
[355110259,1740900639685,-500.0,0.00022716,2]
[355110260,1740900639695,-2888.73,0.00022716,2]
[355110261,1740900639705,-500.0,0.00022716,2]
[355110262,1740900639714,-3919.06,0.00022716,2]
[355110263,1740900639724,-500.0,0.00022716,2]
[355110264,1740900639734,-1438.9,0.00022716,2]
[355110265,1740900639744,-500.0,0.00022716,2]
[355110266,1740900639754,-531.63,0.00022716,2]
[355110267,1740900639763,-500.0,0.00022716,2]
[355110268,1740900639772,-500.0,0.00022716,2]
[355110269,1740900639782,-527.03,0.00022716,2]
[355110270,1740900639791,-1596.36,0.00022716,2]
[355110271,1740900639800,-1640.26,0.00022716,2]
[355110272,1740900639810,-2974.41,0.00022716,2]
[355110273,1740900639820,-500.0,0.00022716,2]
[355110274,1740900639830,-500.0,0.00022716,2]
[355110275,1740900639839,-1044.3,0.00022716,2]
[355110276,1740900639854,-500.0,0.00022716,2]
[355110277,1740900639865,-500.0,0.00022717,2]
[355110278,1740900639875,-266.25,0.00022717,2]
[355110279,1740900639885,-500.0,0.00022717,2]
[355110280,1740900639895,-500.0,0.00022717,2]
[355110281,1740900639905,-500.0,0.00022717,2]
[355110282,1740900639916,-250.0,0.00022717,2]
[355110283,1740900639926,-500.0,0.00022717,2]
[355110284,1740900639936,-500.0,0.00022717,2]
[355110285,1740900639946,-500.0,0.00022717,2]
[355110286,1740900639956,-500.0,0.00022717,2]
[355110287,1740900639966,-500.0,0.00022717,2]
[355110289,1740900639976,-500.0,0.00022717,2]
[355110291,1740900639985,-500.0,0.00022717,2]
[355110293,1740900639995,-500.0,0.00022717,2]
[355110295,1740900640005,-500.0,0.00022717,2]
[355110296,1740900640015,-500.0,0.00022717,2]
[355110297,1740900640025,-511.84,0.00022717,2]
[355110298,1740900640034,-500.0,0.00022717,2]
[355110299,1740900640044,-500.0,0.00022717,2]
[355110300,1740900640053,-500.0,0.00022717,2]
[355110301,1740900640064,-500.0,0.00022717,2]
[355110302,1740900640073,-400.07,0.00022717,2]
[355110303,1740900640083,-384.97,0.00022717,2]
[355110304,1740900640093,-500.0,0.00022717,2]
[355110305,1740900640103,-500.0,0.00022717,2]
[355110306,1740900640112,-500.0,0.00022717,2]
[355110307,1740900640122,-500.0,0.00022717,2]
[355110308,1740900640131,-500.0,0.00022717,2]
[355110309,1740900640141,-500.0,0.00022717,2]
[355110310,1740900640151,-500.0,0.00022717,2]
[355110311,1740900640160,-500.0,0.00022717,2]
[355110312,1740900640170,-500.0,0.00022717,2]
[355110313,1740900640179,-500.0,0.00022717,2]
[355110314,1740900640189,-500.0,0.00022717,2]
[355110315,1740900640198,-500.0,0.00022717,2]
[355110316,1740900640207,-500.0,0.00022717,2]
[355110317,1740900640217,-500.0,0.00022717,2]
[355110318,1740900640227,-500.0,0.00022717,2]
[355110319,1740900640237,-500.0,0.00022717,2]
[355110320,1740900640247,-500.0,0.00022717,2]
[355110321,1740900640257,-500.0,0.00022717,2]
[355110322,1740900640267,-500.0,0.00022717,2]
[355110323,1740900640277,-500.0,0.00022717,2]
[355110324,1740900640287,-2729.22,0.00022717,2]
[355110325,1740900640297,-562.02,0.00022717,2]
[355110326,1740900640307,-500.0,0.00022717,2]
[355110327,1740900640317,-500.0,0.00022717,2]
[355110329,1740900640327,-500.0,0.00022717,2]
[355110331,1740900640337,-500.0,0.00022717,2]
[355110333,1740900640346,-500.0,0.00022717,2]
[355110334,1740900640356,-500.0,0.00022717,2]
[355110335,1740900640366,-500.0,0.00022717,2]
[355110336,1740900640375,-500.0,0.00022717,2]
[355110338,1740900640386,-500.0,0.00022717,2]
[355110339,1740900640396,-500.0,0.00022717,2]
[355110340,1740900640405,-500.0,0.00022717,2]
[355110341,1740900640415,-500.0,0.00022717,2]
[355110342,1740900640425,-500.0,0.00022717,2]
[355110344,1740900640435,-500.0,0.00022717,2]
[355110345,1740900640445,-500.0,0.00022717,2]
[355110346,1740900640455,-773.69,0.00022717,2]
[355110347,1740900640464,-511.40992688,0.00022717,2]
[355110348,1740900640475,-500.0,0.00022717,2]
[355110349,1740900640484,-500.0,0.00022717,2]
[355110351,1740900640494,-49020.19,0.00022717,2]
[355110352,1740900640504,-599.37786732,0.00022717,2]
[355110354,1740900640513,-969.13,0.00022717,2]
[355110355,1740900640523,-609.64,0.00022717,2]
[355110356,1740900640533,-196.73,0.00022717,2]
[355110357,1740900640543,-500.0,0.00022717,2]
[355110359,1740900640554,-1457.02,0.00022717,2]
[355110361,1740900640563,-588.84,0.00022717,2]
[355110362,1740900640573,-500.0,0.00022717,2]
[355110364,1740900640583,-500.0,0.00022717,2]
[355110365,1740900640593,-500.0,0.00022717,2]
[355110366,1740900640603,-500.0,0.00022717,2]
[355110367,1740900640613,-500.0,0.00022717,2]
[355110368,1740900640623,-500.0,0.00022717,2]
[355110369,1740900640634,-500.0,0.00022717,2]
[355110370,1740900640643,-500.0,0.00022717,2]
[355110371,1740900640653,-500.0,0.00022717,2]
[355110372,1740900640663,-500.0,0.00022717,2]
[355110373,1740900640673,-500.0,0.00022717,2]
[355110374,1740900640684,-500.0,0.00022717,2]
[355110375,1740900640694,-287.96,0.00022717,2]
[355110376,1740900640704,-500.0,0.00022717,2]
[355110377,1740900640713,-500.0,0.00022717,2]
[355110379,1740900640723,-500.0,0.00022717,2]
[355110380,1740900640733,-500.0,0.00022717,2]
[355110381,1740900640743,-500.0,0.00022717,2]
[355110382,1740900640752,-500.0,0.00022717,2]
[355110383,1740900640764,-484.68,0.00022717,2]
[355110384,1740900640773,-500.0,0.00022717,2]
[355110385,1740900640783,-784.22,0.00022717,2]
[355110386,1740900640793,-500.0,0.00022717,2]
[355110387,1740900640803,-500.0,0.00022717,2]
[355110388,1740900640813,-781.69,0.00022717,2]
[355110389,1740900640822,-500.0,0.00022717,2]
[355110390,1740900640831,-500.0,0.00022717,2]
[355110391,1740900640841,-271.02,0.00022717,2]
[355110392,1740900641036,-500.0,0.00022717,2]
[355110393,1740900641047,-607.2,0.00022717,2]
[355110394,1740900641057,-500.0,0.00022717,2]
[355110395,1740900641068,-500.0,0.00022717,2]
[355110396,1740900641078,-712.6,0.00022717,2]
[355110397,1740900641087,-530.40055663,0.00022717,2]
[355110398,1740900641097,-500.0,0.00022717,2]
[355110399,1740900641107,-500.0,0.00022717,2]
[355110400,1740900641117,-500.0,0.00022773,2]
[355110401,1740900641127,-500.0,0.00022773,2]
[355110402,1740900641138,-500.0,0.00022817,2]
[355110403,1740900641147,-500.0,0.00022817,2]
[355110404,1740900641157,-347.36,0.00022817,2]
[355110405,1740900641167,-500.0,0.00022817,2]
[355110406,1740900641177,-500.0,0.00022817,2]
[355110407,1740900641187,-500.0,0.00022817,2]
[355110408,1740900641196,-500.0,0.00022817,2]
[355110409,1740900641206,-193.12,0.00022817,2]
[355110410,1740900641216,-1056.45,0.00022817,2]
[355110411,1740900641226,-511.59,0.00022817,2]
[355110412,1740900641236,-500.0,0.00022817,2]
[355110413,1740900641247,-500.0,0.00022817,2]
[355110414,1740900641257,-500.0,0.00022817,2]
[355110415,1740900641268,-500.0,0.00022817,2]
[355110416,1740900641278,-500.0,0.00022817,2]
[355110417,1740900641288,-500.0,0.00022873,2]
[355110418,1740900641298,-50000.0,0.000229,2]
[355110419,1740900641307,-50000.0,0.000229,2]
[355110420,1740900641317,-500.0,0.00022973,2]
[355110421,1740900641328,-500.0,0.00022973,2]
[355110422,1740900641338,-500.0,0.00022973,2]
[355110423,1740900641348,-500.0,0.00022973,2]
[355110424,1740900641358,-500.0,0.00022973,2]
[355110425,1740900641367,-500.0,0.00022973,2]
[355110426,1740900641377,-500.0,0.00022973,2]
[355110427,1740900641388,-500.0,0.00022973,2]
[355110428,1740900641397,-500.0,0.00022973,2]
[355110429,1740900641407,-500.0,0.00022973,2]
[355110430,1740900641417,-500.0,0.00022973,2]
[355110431,1740900641427,-500.0,0.00022973,2]
[355110432,1740900641437,-505.72196657,0.00022973,2]
[355110433,1740900641447,-264.4389013,0.00022973,2]
[355110434,1740900641457,-500.0,0.00022973,2]
[355110435,1740900641469,-500.0,0.00022973,2]
[355110436,1740900641481,-500.0,0.00022973,2]
[355110437,1740900641491,-500.0,0.00022973,2]
[355110438,1740900641501,-500.0,0.00022973,2]
[355110439,1740900641511,-500.0,0.00022973,2]
[355110440,1740900641521,-500.0,0.00022973,2]
[355110441,1740900641531,-500.0,0.00022973,2]
[355110442,1740900641541,-500.0,0.00022973,2]
[355110443,1740900641551,-500.0,0.00022973,2]
[355110444,1740900641561,-547.71024007,0.00022973,2]
[355110445,1740900641571,-619.89319941,0.00022973,2]
[355110446,1740900641582,-500.0,0.00022973,2]
[355110447,1740900641591,-500.0,0.00022973,2]
[355110448,1740900641601,-503.53510008,0.00022973,2]
[355110449,1740900641611,-500.0,0.00022973,2]
[355110450,1740900641621,-500.0,0.00022973,2]
[355110451,1740900641630,-500.0,0.00022973,2]
[355110452,1740900641640,-279.77159033,0.00022973,2]
[355110453,1740900641650,-500.0,0.00022973,2]
[355110454,1740900641660,-500.0,0.00022973,2]
[355110455,1740900641670,-500.0,0.00022973,2]
[355110456,1740900641680,-4127.06,0.0002299,2]
[355110457,1740900641689,-1019.43,0.0002299,2]
[355110458,1740900641699,-1904.21,0.0002299,2]
[355110459,1740900641708,-644.31,0.0002299,2]
[355110460,1740900641717,-500.0,0.0002299,2]
[355110461,1740900641727,-500.0,0.0002299,2]
[355110462,1740900641736,-500.0,0.0002299,2]
[355110463,1740900641746,-994.65,0.0002299,2]
[355110464,1740900641755,-2169.12,0.0002299,2]
[355110465,1740900641765,-500.0,0.0002299,2]
[355110466,1740900641775,-4459.23,0.0002299,2]
[355110467,1740900641785,-500.0,0.0002299,2]
[355110468,1740900641795,-2595.86,0.0002299,2]
[355110469,1740900641804,-500.0,0.0002299,2]
[355110470,1740900641814,-567.43,0.0002299,2]
[355110471,1740900641824,-500.0,0.0002299,2]
[355110472,1740900641834,-959.75,0.0002299,2]
[355110473,1740900641845,-500.0,0.0002299,2]
[355110474,1740900641857,-2540.92,0.0002299,2]
[355110475,1740900641867,-500.0,0.0002299,2]
[355110476,1740900641877,-740.49,0.0002299,2]
[355110477,1740900641887,-500.0,0.0002299,2]
[355110478,1740900641896,-500.0,0.0002299,2]
[355110479,1740900641906,-1265.62,0.0002299,2]
[355110480,1740900641916,-500.0,0.0002299,2]
[355110481,1740900641926,-550.96,0.0002299,2]
[355110482,1740900641937,-500.0,0.0002299,2]
[355110483,1740900641947,-2888.73,0.0002299,2]
[355110484,1740900641956,-500.0,0.0002299,2]
[355110485,1740900641966,-3919.06,0.0002299,2]
[355110486,1740900641976,-1438.9,0.0002299,2]
[355110487,1740900641986,-500.0,0.0002299,2]
[355110488,1740900641995,-531.63,0.0002299,2]
[355110489,1740900642005,-500.0,0.0002299,2]
[355110490,1740900642014,-500.0,0.0002299,2]
[355110491,1740900642024,-527.03,0.0002299,2]
[355110492,1740900642034,-1596.36,0.0002299,2]
[355110493,1740900642043,-1640.26,0.0002299,2]
[355110494,1740900642053,-2974.41,0.0002299,2]
[355110495,1740900642063,-500.0,0.0002299,2]
[355110496,1740900642073,-1044.3,0.0002299,2]
[355110497,1740900642083,-500.0,0.0002299,2]
[355110498,1740900642093,-3000.0,0.00022991,2]
[355110499,1740900642104,-500.0,0.00022991,2]
[355110500,1740900642114,-500.0,0.00022991,2]
[355110501,1740900642124,-300.95,0.00022991,2]
[355110502,1740900642133,-228.73,0.00022991,2]
[355110503,1740900642143,-250.0,0.00022991,2]
[355110504,1740900642153,-500.0,0.00022991,2]
[355110505,1740900642163,-500.0,0.00022991,2]
[355110506,1740900642172,-500.0,0.00022991,2]
[355110507,1740900642182,-500.0,0.00022991,2]
[355110508,1740900642191,-500.0,0.00022991,2]
[355110509,1740900642201,-500.0,0.00022991,2]
[355110510,1740900642211,-500.0,0.00022991,2]
[355110511,1740900642221,-500.0,0.00022991,2]
[355110512,1740900642230,-500.0,0.00022991,2]
[355110513,1740900642240,-500.0,0.00022991,2]
[355110514,1740900642251,-500.0,0.00022991,2]
[355110515,1740900642260,-500.0,0.00022991,2]
[355110516,1740900642270,-500.0,0.00022991,2]
[355110517,1740900642279,-500.0,0.00022991,2]
[355110518,1740900642288,-500.0,0.00022991,2]
[355110519,1740900642298,-500.0,0.00022991,2]
[355110520,1740900642307,-500.0,0.00022991,2]
[355110521,1740900642317,-500.0,0.00022991,2]
[355110522,1740900642326,-500.0,0.00022991,2]
[355110523,1740900642336,-500.0,0.00022991,2]
[355110524,1740900642345,-558.57,0.00022991,2]
[355110525,1740900642355,-500.0,0.00022991,2]
[355110526,1740900642364,-500.0,0.00022991,2]
[355110527,1740900642373,-500.0,0.00022991,2]
[355110528,1740900642383,-500.0,0.00022991,2]
[355110529,1740900642392,-2729.22,0.00022991,2]
[355110530,1740900642402,-500.0,0.00022991,2]
[355110531,1740900642412,-500.0,0.00022991,2]
[355110532,1740900642421,-500.0,0.00022991,2]
[355110533,1740900642431,-500.0,0.00022991,2]
[355110534,1740900642440,-500.0,0.00022991,2]
[355110535,1740900642450,-500.0,0.00022991,2]
[355110536,1740900642460,-500.0,0.00022991,2]
[355110537,1740900642469,-500.0,0.00022991,2]
[355110538,1740900642479,-500.0,0.00022991,2]
[355110539,1740900642488,-500.0,0.00022991,2]
[355110540,1740900642498,-500.0,0.00022991,2]
[355110541,1740900642507,-503.57,0.00022991,2]
[355110542,1740900642517,-773.69,0.00022991,2]
[355110543,1740900642527,-500.0,0.00022991,2]
[355110544,1740900642536,-49020.19,0.00022991,2]
[355110545,1740900642546,-969.13,0.00022991,2]
[355110546,1740900642555,-609.64,0.00022991,2]
[355110547,1740900642565,-1457.02,0.00022991,2]
[355110548,1740900642574,-500.0,0.00022991,2]
[355110549,1740900642584,-500.0,0.00022991,2]
[355110550,1740900642594,-500.0,0.00022991,2]
[355110551,1740900642603,-500.0,0.00022991,2]
[355110552,1740900642613,-599.02,0.00022991,2]
[355110553,1740900642622,-500.0,0.00022991,2]
[355110554,1740900642632,-500.0,0.00022991,2]
[355110555,1740900642642,-500.0,0.00022991,2]
[355110556,1740900642652,-500.0,0.00022991,2]
[355110557,1740900642661,-537.5,0.00022991,2]
[355110558,1740900642670,-500.0,0.00022991,2]
[355110559,1740900642679,-500.0,0.00022991,2]
[355110560,1740900642689,-350.06178652,0.00022991,2]
[355110561,1740900642698,-500.0,0.00022991,2]
[355110562,1740900642708,-784.22,0.00022991,2]
[355110563,1740900642717,-500.0,0.00022991,2]
[355110564,1740900642726,-500.0,0.00022991,2]
[355110565,1740900642736,-781.69,0.00022991,2]
[355110566,1740900642745,-500.0,0.00022991,2]
[355110567,1740900642755,-500.0,0.00022991,2]
[355110568,1740900642765,-500.0,0.00022991,2]
[355110569,1740900642774,-500.0,0.00022991,2]
[355110570,1740900642784,-500.0,0.00022991,2]
[355110571,1740900642795,-712.6,0.00022991,2]
[355110572,1740900642805,-500.0,0.00022991,2]
[355110573,1740900642815,-500.0,0.00023091,2]
[355110574,1740900642824,-500.0,0.00023091,2]
[355110575,1740900642834,-500.0,0.00023091,2]
[355110576,1740900642844,-500.0,0.00023091,2]
[355110577,1740900642855,-1056.45,0.00023091,2]
[355110578,1740900642866,-500.0,0.00023091,2]
[355110579,1740900642876,-500.0,0.00023091,2]
[355110580,1740900642886,-500.0,0.00023091,2]
[355110581,1740900642896,-500.0,0.00023091,2]
[355110582,1740900642905,-47965.36533063,0.00023264,3]
[355110583,1740900642915,-248028.23404077,0.00023264,3]
[355110584,1740900642924,-4127.06,0.00023264,2]
[355110585,1740900642936,-1019.43,0.00023264,2]
[355110586,1740900642946,-1904.21,0.00023264,2]
[355110587,1740900642955,-644.31,0.00023264,2]
[355110588,1740900642965,-500.0,0.00023264,2]
[355110589,1740900642974,-500.0,0.00023264,2]
[355110590,1740900642983,-190.61328658,0.00023264,2]
[355110591,1740900642993,-994.65,0.00023264,2]
[355110592,1740900643002,-2169.12,0.00023264,2]
[355110593,1740900643012,-500.0,0.00023264,2]
[355110594,1740900643021,-4459.23,0.00023264,2]
[355110595,1740900643031,-500.0,0.00023264,2]
[355110596,1740900643040,-2595.86,0.00023264,2]
[355110597,1740900643050,-500.0,0.00023264,2]
[355110598,1740900643060,-567.43,0.00023264,2]
[355110599,1740900643069,-959.75,0.00023264,2]
[355110600,1740900643079,-500.0,0.00023264,2]
[355110601,1740900643089,-2540.92,0.00023264,2]
[355110602,1740900643098,-500.0,0.00023264,2]
[355110603,1740900643107,-740.49,0.00023264,2]
[355110604,1740900643117,-500.0,0.00023264,2]
[355110605,1740900643127,-500.0,0.00023264,2]
[355110606,1740900643137,-1265.62,0.00023264,2]
[355110607,1740900643146,-500.0,0.00023264,2]
[355110608,1740900643156,-550.96,0.00023264,2]
[355110609,1740900643165,-500.0,0.00023264,2]
[355110610,1740900643174,-2888.73,0.00023264,2]
[355110611,1740900643184,-500.0,0.00023264,2]
[355110612,1740900643194,-3919.06,0.00023264,2]
[355110613,1740900643203,-1438.9,0.00023264,2]
[355110614,1740900643213,-502.66,0.00023264,2]
[355110615,1740900643223,-531.63,0.00023264,2]
[355110616,1740900643232,-500.0,0.00023264,2]
[355110617,1740900643242,-500.0,0.00023264,2]
[355110618,1740900643251,-527.03,0.00023264,2]
[355110619,1740900643261,-1596.36,0.00023264,2]
[355110620,1740900643271,-1640.26,0.00023264,2]
[355110621,1740900643280,-2974.41,0.00023264,2]
[355110622,1740900643290,-500.0,0.00023264,2]
[355110623,1740900643299,-1044.3,0.00023264,2]
[355110624,1740900643308,-500.0,0.00023264,2]
[355110625,1740900643317,-19629.85965445,0.00023265,3]
[355110626,1740900643327,-160.0,0.00023265,3]
[355110627,1740900643336,-479.92495065,0.00023265,2]
[355110628,1740900643345,-500.0,0.00023265,2]
[355110629,1740900643354,-182.74,0.00023265,2]
[355110630,1740900643363,-500.0,0.00023265,2]
[355110631,1740900643373,-500.0,0.00023265,2]
[355110632,1740900643382,-500.0,0.00023265,2]
[355110633,1740900643391,-500.0,0.00023265,2]
[355110634,1740900643400,-556.91,0.00023265,2]
[355110635,1740900643410,-356.92,0.00023265,2]
[355110636,1740900643419,-500.0,0.00023265,2]
[355110637,1740900643430,-500.0,0.00023265,2]
[355110638,1740900643439,-634.95,0.00023265,2]
[355110639,1740900643449,-500.0,0.00023265,2]
[355110640,1740900643458,-500.0,0.00023265,2]
[355110641,1740900643467,-500.0,0.00023265,2]
[355110642,1740900643477,-500.0,0.00023265,2]
[355110643,1740900643486,-500.0,0.00023265,2]
[355110644,1740900643496,-500.0,0.00023265,2]
[355110645,1740900643506,-500.0,0.00023265,2]
[355110646,1740900643515,-445.2529613,0.00023265,2]
[355110647,1740900643525,-500.0,0.00023265,2]